Workbook

Sheet August 2026
A1: August | B1: 2026 | C1: Cu Settl. | F1: Al Settl. | I1: AA settl. | L1: Zn Settl. | O1: Ni Settl. | R1: Pb settl. | U1: Sn Settl. | X1: ECB | Y1: BFIX | Z1: LME FX | AA1: ČNB | AB1: ČNB
A2: Date | B2: LME | C2: USD/mt | D2: EUR/mt | E2: CZK/mt | F2: USD/mt | G2: EUR/mt | H2: CZK/mt | I2: USD/mt | J2: EUR/mt | K2: CZK/mt | L2: USD/mt | M2: EUR/mt | N2: CZK/mt | O2: USD/mt | P2: EUR/mt | Q2: CZK/mt | R2: USD/mt | S2: EUR/mt | T2: CZK/mt | U2: USD/mt | V2: EUR/mt | W2: CZK/mt | X2: EUR/USD | Y2: EUR/USD | Z2: EUR/USD | AA2: CZK/EUR | AB2: CZK/USD
B3: days | X3: -0.0030 | Y3: -0.0030
A4: 1 | D4: =IF(C4=0,"",C4/Z4) ->  | G4: =IF(F4=0,"",F4/Z4) ->  | J4: =IF(I4=0,"",I4/Z4) ->  | M4: =IF(L4=0,"",L4/Z4) ->  | P4: =IF(O4=0,"",O4/Z4) ->  | S4: =IF(R4=0,"",R4/Z4) ->  | V4: =IF(U4=0,"",U4/Z4) -> 
A5: 2
A6: 3 | B6: 1 | C6: 13,945.0 | D6: 12,091.39 | E6: =C6*AB6 -> 292,691.61 | F6: 3,260.0 | G6: 2,826.67 | H6: =F6*AB6 -> 68,424.14 | I6: 3,200.0 | J6: 2,774.65 | K6: =I6*AB6 -> 67,164.80 | L6: 3,751.0 | M6: 3,252.41 | N6: =L6*AB6 -> 78,729.74 | O6: 16,785 | P6: 14,553.89 | Q6: =O6*AB6 -> 352,300.37 | R6: 1,828.0 | S6: 1,585.02 | T6: =R6*AB6 -> 38,367.89 | U6: 55,200 | V6: 47,862.65 | W6: =U6*AB6 -> 1,158,592.80 | X6: 1.1505 | Y6: 1.1501 | Z6: 1.1533 | AA6: 24.205 | AB6: 20.989
A7: 4 | B7: 1 | C7: 14,195.0 | D7: =IF(C7=0,"",C7/Z7) -> 12,325.26 | E7: =C7*AB7 -> 298,336.32 | F7: 3,271.0 | G7: =IF(F7=0,"",F7/Z7) -> 2,840.15 | H7: =F7*AB7 -> 68,746.61 | I7: 3,200.0 | J7: =IF(I7=0,"",I7/Z7) -> 2,778.50 | K7: =I7*AB7 -> 67,254.40 | L7: 3,730.0 | M7: =IF(L7=0,"",L7/Z7) -> 3,238.69 | N7: =L7*AB7 -> 78,393.41 | O7: 17,125 | P7: =IF(O7=0,"",O7/Z7) -> 14,869.32 | Q7: =O7*AB7 -> 359,916.13 | R7: 1,847.0 | S7: =IF(R7=0,"",R7/Z7) -> 1,603.72 | T7: =R7*AB7 -> 38,818.40 | U7: 55,700 | V7: =IF(U7=0,"",U7/Z7) -> 48,363.29 | W7: =U7*AB7 -> 1,170,646.90 | X7: 1.1485 | Y7: 1.1487 | Z7: 1.1517 | AA7: 24.200 | AB7: 21.017
A8: 5 | B8: 1 | C8: 14,167.5 | D8: 12,263.05 | E8: 296,624.95 | F8: 3,229.0 | G8: 2,794.95 | H8: 67,605.57 | I8: 3,200.0 | J8: 2,769.84 | K8: 66,998.40 | L8: 3,737.0 | M8: 3,234.66 | N8: 78,241.57 | O8: 16,915 | P8: 14,641.22 | Q8: 354,149.36 | R8: 1,845.0 | S8: 1,596.99 | T8: 38,628.77 | U8: 56,225 | V8: 48,667.01 | W8: 1,177,182.83 | X8: 1.1524 | Y8: 1.1522 | Z8: 1.1553 | AA8: 24.190 | AB8: 20.937
A9: 6 | B9: 1 | C9: 14,455.0 | D9: =IF(C9=0,"",C9/Z9) -> 12,519.49 | E9: =C9*AB9 -> 303,208.08 | F9: 3,261.0 | G9: =IF(F9=0,"",F9/Z9) -> 2,824.35 | H9: =F9*AB9 -> 68,402.74 | I9: 3,200.0 | J9: =IF(I9=0,"",I9/Z9) -> 2,771.52 | K9: =I9*AB9 -> 67,123.20 | L9: 3,857.0 | M9: =IF(L9=0,"",L9/Z9) -> 3,340.55 | N9: =L9*AB9 -> 80,904.43 | O9: 16,595 | P9: =IF(O9=0,"",O9/Z9) -> 14,372.94 | Q9: =O9*AB9 -> 348,096.72 | R9: 1,851.0 | S9: =IF(R9=0,"",R9/Z9) -> 1,603.15 | T9: =R9*AB9 -> 38,826.58 | U9: 56,500 | V9: =IF(U9=0,"",U9/Z9) -> 48,934.70 | W9: =U9*AB9 -> 1,185,144.00 | X9: 1.1512 | Y9: 1.1514 | Z9: 1.1546 | AA9: 24.210 | AB9: 20.976
A10: 7 | B10: 1 | C10: 14,240.0 | D10: =IF(C10=0,"",C10/Z10) -> 12,346.11 | E10: =C10*AB10 -> 299,595.36 | F10: 3,279.5 | G10: =IF(F10=0,"",F10/Z10) -> 2,843.33 | H10: =F10*AB10 -> 68,997.40 | I10: 3,200.0 | J10: =IF(I10=0,"",I10/Z10) -> 2,774.41 | K10: =I10*AB10 -> 67,324.80 | L10: 3,785.0 | M10: =IF(L10=0,"",L10/Z10) -> 3,281.60 | N10: =L10*AB10 -> 79,632.62 | O10: 16,745 | P10: =IF(O10=0,"",O10/Z10) -> 14,517.95 | Q10: =O10*AB10 -> 352,298.06 | R10: 1,840.5 | S10: =IF(R10=0,"",R10/Z10) -> 1,595.72 | T10: =R10*AB10 -> 38,722.28 | U10: 56,100 | V10: =IF(U10=0,"",U10/Z10) -> 48,638.81 | W10: =U10*AB10 -> 1,180,287.90 | X10: 1.1505 | Y10: 1.1502 | Z10: 1.1534 | AA10: 24.265 | AB10: 21.039
A11: 8
A12: 9
A13: 10 | B13: 1 | C13: 14,290.0 | D13: =IF(C13=0,"",C13/Z13) -> 12,369.08 | E13: =C13*AB13 -> 300,047.13 | F13: 3,327.5 | G13: =IF(F13=0,"",F13/Z13) -> 2,880.20 | H13: =F13*AB13 -> 69,867.52 | I13: 3,200.0 | J13: =IF(I13=0,"",I13/Z13) -> 2,769.84 | K13: =I13*AB13 -> 67,190.40 | L13: 3,786.0 | M13: =IF(L13=0,"",L13/Z13) -> 3,277.07 | N13: =L13*AB13 -> 79,494.64 | O13: 16,775 | P13: =IF(O13=0,"",O13/Z13) -> 14,520.04 | Q13: =O13*AB13 -> 352,224.68 | R13: 1,858.0 | S13: =IF(R13=0,"",R13/Z13) -> 1,608.24 | T13: =R13*AB13 -> 39,012.43 | U13: 55,900 | V13: =IF(U13=0,"",U13/Z13) -> 48,385.70 | W13: =U13*AB13 -> 1,173,732.30 | X13: 1.1525 | Y13: 1.1521 | Z13: 1.1553 | AA13: 24.255 | AB13: 20.997
A14: 11 | B14: 1 | C14: 14,424.5 | D14: 12,485.50 | E14: 303,116.44 | F14: 3,373.0 | G14: 2,919.59 | H14: 70,880.22 | I14: 3,200.0 | J14: 2,769.84 | K14: 67,244.80 | L14: 3,822.0 | M14: 3,308.23 | N14: 80,315.51 | O14: 16,640 | P14: 14,403.19 | Q14: 349,672.96 | R14: 1,878.0 | S14: 1,625.55 | T14: 39,464.29 | U14: 55,305 | V14: 47,870.68 | W14: 1,162,179.27 | X14: 1.1510 | Y14: 1.1507 | Z14: 1.1553 | AA14: 24.245 | AB14: 21.014
A15: 12 | B15: 1 | C15: 14,376.0 | D15: =IF(C15=0,"",C15/Z15) -> 12,453.22 | E15: =C15*AB15 -> 302,011.01 | F15: 3,307.5 | G15: =IF(F15=0,"",F15/Z15) -> 2,865.12 | H15: =F15*AB15 -> 69,483.96 | I15: 3,200.0 | J15: =IF(I15=0,"",I15/Z15) -> 2,772.00 | K15: =I15*AB15 -> 67,225.60 | L15: 3,852.0 | M15: =IF(L15=0,"",L15/Z15) -> 3,336.80 | N15: =L15*AB15 -> 80,922.82 | O15: 16,725 | P15: =IF(O15=0,"",O15/Z15) -> 14,488.05 | Q15: =O15*AB15 -> 351,358.80 | R15: 1,880.0 | S15: =IF(R15=0,"",R15/Z15) -> 1,628.55 | T15: =R15*AB15 -> 39,495.04 | U15: 56,050 | V15: =IF(U15=0,"",U15/Z15) -> 48,553.36 | W15: =U15*AB15 -> 1,177,498.40 | X15: 1.1515 | Y15: 1.1515 | Z15: 1.1544 | AA15: 24.255 | AB15: 21.008
A16: 13 | B16: 1 | C16: 14,285.0 | D16: =IF(C16=0,"",C16/Z16) -> 12,384.05 | E16: =C16*AB16 -> 300,127.85 | F16: 3,279.0 | G16: =IF(F16=0,"",F16/Z16) -> 2,842.65 | H16: =F16*AB16 -> 68,891.79 | I16: 3,200.0 | J16: =IF(I16=0,"",I16/Z16) -> 2,774.17 | K16: =I16*AB16 -> 67,232.00 | L16: 3,806.0 | M16: =IF(L16=0,"",L16/Z16) -> 3,299.52 | N16: =L16*AB16 -> 79,964.06 | O16: 16,690 | P16: =IF(O16=0,"",O16/Z16) -> 14,469.01 | Q16: =O16*AB16 -> 350,656.90 | R16: 1,856.0 | S16: =IF(R16=0,"",R16/Z16) -> 1,609.02 | T16: =R16*AB16 -> 38,994.56 | U16: 56,150 | V16: =IF(U16=0,"",U16/Z16) -> 48,677.94 | W16: =U16*AB16 -> 1,179,711.50 | X16: 1.1504 | Y16: 1.1504 | Z16: 1.1535 | AA16: 24.230 | AB16: 21.010
A17: 14 | B17: 1 | C17: 14,545.0 | D17: =IF(C17=0,"",C17/Z17) -> 12,575.65 | E17: =C17*AB17 -> 304,514.12 | F17: 3,248.0 | G17: =IF(F17=0,"",F17/Z17) -> 2,808.23 | H17: =F17*AB17 -> 68,000.13 | I17: 3,200.0 | J17: =IF(I17=0,"",I17/Z17) -> 2,766.73 | K17: =I17*AB17 -> 66,995.20 | L17: 3,875.0 | M17: =IF(L17=0,"",L17/Z17) -> 3,350.34 | N17: =L17*AB17 -> 81,127.00 | O17: 16,575 | P17: =IF(O17=0,"",O17/Z17) -> 14,330.80 | Q17: =O17*AB17 -> 347,014.20 | R17: 1,846.0 | S17: =IF(R17=0,"",R17/Z17) -> 1,596.06 | T17: =R17*AB17 -> 38,647.86 | U17: 56,075 | V17: =IF(U17=0,"",U17/Z17) -> 48,482.62 | W17: =U17*AB17 -> 1,173,986.20 | X17: 1.1537 | Y17: 1.1536 | Z17: 1.1566 | AA17: 24.210 | AB17: 20.936
A18: 15
A19: 16
A20: 17 | B20: 1 | C20: 14,850.0 | D20: =IF(C20=0,"",C20/Z20) -> 12,809.45 | E20: =C20*AB20 -> 309,993.75 | F20: 3,272.0 | G20: =IF(F20=0,"",F20/Z20) -> 2,822.39 | H20: =F20*AB20 -> 68,303.00 | I20: 3,200.0 | J20: =IF(I20=0,"",I20/Z20) -> 2,760.29 | K20: =I20*AB20 -> 66,800.00 | L20: 3,855.0 | M20: =IF(L20=0,"",L20/Z20) -> 3,325.28 | N20: =L20*AB20 -> 80,473.13 | O20: 16,670 | P20: =IF(O20=0,"",O20/Z20) -> 14,379.37 | Q20: =O20*AB20 -> 347,986.25 | R20: 1,851.5 | S20: =IF(R20=0,"",R20/Z20) -> 1,597.08 | T20: =R20*AB20 -> 38,650.06 | U20: 56,225 | V20: =IF(U20=0,"",U20/Z20) -> 48,499.09 | W20: =U20*AB20 -> 1,173,696.88 | X20: 1.1563 | Y20: 1.1562 | Z20: 1.1593 | AA20: 24.200 | AB20: 20.875
A21: 18 | B21: 1 | C21: 14,335.0 | D21: 12,382.31 | E21: 299,386.48 | F21: 3,219.0 | G21: 2,780.51 | H21: 67,228.82 | I21: 3,200.0 | J21: 2,764.10 | K21: 66,832.00 | L21: 3,795.0 | M21: 3,278.05 | N21: 79,258.58 | O21: 16,740 | P21: 14,459.70 | Q21: 349,614.90 | R21: 1,840.5 | S21: 1,589.79 | T21: 38,438.84 | U21: 55,550 | V21: 47,983.07 | W21: 1,160,161.75 | X21: 1.1546 | Y21: 1.1546 | Z21: 1.1577 | AA21: 24.180 | AB21: 20.885
A22: 19 | B22: 1 | C22: 14,180.0 | D22: =IF(C22=0,"",C22/Z22) -> 12,220.98 | E22: =C22*AB22 -> 295,185.06 | F22: 3,191.5 | G22: =IF(F22=0,"",F22/Z22) -> 2,750.58 | H22: =F22*AB22 -> 66,437.46 | I22: 3,200.0 | J22: =IF(I22=0,"",I22/Z22) -> 2,757.91 | K22: =I22*AB22 -> 66,614.40 | L22: 3,750.0 | M22: =IF(L22=0,"",L22/Z22) -> 3,231.92 | N22: =L22*AB22 -> 78,063.75 | O22: 16,690 | P22: =IF(O22=0,"",O22/Z22) -> 14,384.21 | Q22: =O22*AB22 -> 347,435.73 | R22: 1,827.0 | S22: =IF(R22=0,"",R22/Z22) -> 1,574.59 | T22: =R22*AB22 -> 38,032.66 | U22: 54,375 | V22: =IF(U22=0,"",U22/Z22) -> 46,862.88 | W22: =U22*AB22 -> 1,131,924.38 | X22: 1.1575 | Y22: 1.1573 | Z22: 1.1603 | AA22: 24.160 | AB22: 20.817
A23: 20 | B23: 1 | C23: 14,170.0 | D23: 12,125.62 | E23: 292,893.90 | F23: 3,182.0 | G23: 2,722.92 | H23: 65,771.94 | I23: 3,200.0 | J23: 2,738.32 | K23: 66,144.00 | L23: 3,865.5 | M23: 3,307.80 | N23: 79,899.89 | O23: 16,660 | P23: 14,256.38 | Q23: 344,362.20 | R23: 1,848.0 | S23: 1,581.38 | T23: 38,198.16 | U23: 54,850 | V23: 46,936.51 | W23: 1,133,749.50 | X23: 1.1651 | Y23: 1.1655 | Z23: 1.1686 | AA23: 24.150 | AB23: 20.670
A24: 21 | B24: 1 | C24: 14,291.0 | D24: =IF(C24=0,"",C24/Z24) -> 12,213.49 | E24: =C24*AB24 -> 294,680.42 | F24: 3,227.0 | G24: =IF(F24=0,"",F24/Z24) -> 2,757.88 | H24: =F24*AB24 -> 66,540.74 | I24: 3,200.0 | J24: =IF(I24=0,"",I24/Z24) -> 2,734.81 | K24: =I24*AB24 -> 65,984.00 | L24: 3,980.0 | M24: =IF(L24=0,"",L24/Z24) -> 3,401.42 | N24: =L24*AB24 -> 82,067.60 | O24: 16,860 | P24: =IF(O24=0,"",O24/Z24) -> 14,409.02 | Q24: =O24*AB24 -> 347,653.20 | R24: 1,857.0 | S24: =IF(R24=0,"",R24/Z24) -> 1,587.04 | T24: =R24*AB24 -> 38,291.34 | U24: 55,900 | V24: =IF(U24=0,"",U24/Z24) -> 47,773.69 | W24: =U24*AB24 -> 1,152,658.00 | X24: 1.1669 | Y24: 1.1670 | Z24: 1.1701 | AA24: 24.120 | AB24: 20.620
A25: 22
A26: 23
A27: 24 | B27: 1 | C27: 14,344.0 | D27: 12,294.51 | E27: 296,347.04 | F27: 3,215.5 | G27: 2,756.06 | H27: 66,432.23 | I27: 3,200.0 | J27: 2,742.78 | K27: 66,112.00 | L27: 3,985.0 | M27: 3,415.62 | N27: 82,330.10 | O27: 16,940 | P27: 14,519.59 | Q27: 349,980.40 | R27: 1,862.5 | S27: 1,596.38 | T27: 38,479.25 | U27: 55,900 | V27: 47,912.92 | W27: 1,154,894.00 | X27: 1.1634 | Y27: 1.1637 | Z27: 1.1667 | AA27: 24.100 | AB27: 20.660
A28: 25 | B28: 1 | C28: 14,425.0 | D28: =IF(C28=0,"",C28/Z28) -> 12,371.36 | E28: =C28*AB28 -> 298,006.08 | F28: 3,188.0 | G28: =IF(F28=0,"",F28/Z28) -> 2,734.13 | H28: =F28*AB28 -> 65,860.89 | I28: 3,200.0 | J28: =IF(I28=0,"",I28/Z28) -> 2,744.43 | K28: =I28*AB28 -> 66,108.80 | L28: 3,987.0 | M28: =IF(L28=0,"",L28/Z28) -> 3,419.38 | N28: =L28*AB28 -> 82,367.43 | O28: 16,780 | P28: =IF(O28=0,"",O28/Z28) -> 14,391.08 | Q28: =O28*AB28 -> 346,658.02 | R28: 1,867.0 | S28: =IF(R28=0,"",R28/Z28) -> 1,601.20 | T28: =R28*AB28 -> 38,570.35 | U28: 55,700 | V28: =IF(U28=0,"",U28/Z28) -> 47,770.15 | W28: =U28*AB28 -> 1,150,706.30 | X28: 1.1632 | Y28: 1.1631 | Z28: 1.1660 | AA28: 24.095 | AB28: 20.659
A29: 26 | B29: 1 | C29: 14,525.0 | D29: =IF(C29=0,"",C29/Z29) -> 12,447.51 | E29: =C29*AB29 -> 299,636.23 | F29: 3,227.5 | G29: =IF(F29=0,"",F29/Z29) -> 2,765.88 | H29: =F29*AB29 -> 66,580.10 | I29: 3,200.0 | J29: =IF(I29=0,"",I29/Z29) -> 2,742.31 | K29: =I29*AB29 -> 66,012.80 | L29: 4,107.0 | M29: =IF(L29=0,"",L29/Z29) -> 3,519.58 | N29: =L29*AB29 -> 84,723.30 | O29: 16,895 | P29: =IF(O29=0,"",O29/Z29) -> 14,478.53 | Q29: =O29*AB29 -> 348,526.96 | R29: 1,866.0 | S29: =IF(R29=0,"",R29/Z29) -> 1,599.11 | T29: =R29*AB29 -> 38,493.71 | U29: 55,300 | V29: =IF(U29=0,"",U29/Z29) -> 47,390.52 | W29: =U29*AB29 -> 1,140,783.70 | X29: 1.1639 | Y29: 1.1638 | Z29: 1.1669 | AA29: 24.080 | AB29: 20.629
A30: 27 | B30: 1 | C30: 14,490.0 | D30: 12,447.38 | E30: 300,450.15 | F30: 3,212.5 | G30: 2,759.64 | H30: 66,611.19 | I30: 3,200.0 | J30: 2,748.90 | K30: 66,352.00 | L30: 4,107.0 | M30: 3,528.05 | N30: 85,158.65 | O30: 16,660 | P30: 14,311.49 | Q30: 345,445.10 | R30: 1,872.0 | S30: 1,608.11 | T30: 38,815.92 | U30: 54,950 | V30: 47,203.85 | W30: 1,139,388.25 | X30: 1.1615 | Y30: 1.1612 | Z30: 1.1641 | AA30: 24.140 | AB30: 20.735
A31: 28 | B31: 1 | C31: 14,535.0 | D31: =IF(C31=0,"",C31/Z31) -> 12,480.68 | E31: =C31*AB31 -> 301,470.44 | F31: 3,222.0 | G31: =IF(F31=0,"",F31/Z31) -> 2,766.62 | H31: =F31*AB31 -> 66,827.50 | I31: 3,200.0 | J31: =IF(I31=0,"",I31/Z31) -> 2,747.72 | K31: =I31*AB31 -> 66,371.20 | L31: 4,070.0 | M31: =IF(L31=0,"",L31/Z31) -> 3,494.76 | N31: =L31*AB31 -> 84,415.87 | O31: 16,850 | P31: =IF(O31=0,"",O31/Z31) -> 14,468.49 | Q31: =O31*AB31 -> 349,485.85 | R31: 1,880.0 | S31: =IF(R31=0,"",R31/Z31) -> 1,614.29 | T31: =R31*AB31 -> 38,993.08 | U31: 55,125 | V31: =IF(U31=0,"",U31/Z31) -> 47,333.85 | W31: =U31*AB31 -> 1,143,347.63 | X31: 1.1613 | Y31: 1.1615 | Z31: 1.1646 | AA31: 24.150 | AB31: 20.741
A32: 29
A33: 30
A34: 31
B35: =SUM(B4:B34) -> 20 | C35: =AVERAGE(C4:C34) -> 14,353.40 | D35: =AVERAGE(D4:D34) -> 12,380.30 | E35: 299,416.12 | F35: 3,249.63 | G35: 2,803.09 | H35: 67,794.70 | I35: 3,200.00 | J35: 2,760.15 | K35: 66,754.24 | L35: 3,875.13 | M35: 3,342.09 | N35: 80,824.20 | O35: 16,765.75 | P35: 14,461.21 | Q35: 349,741.84 | R35: 1,855.05 | S35: 1,600.05 | T35: 38,697.07 | U35: 55,654.00 | V35: 48,005.16 | W35: 1,161,013.62 | X35: =AVERAGE(X4:X34) -> 1.1563 | Y35: =AVERAGE(Y4:Y34) -> 1.1562 | Z35: =AVERAGE(Z4:Z34) -> 1.1594 | AA35: =AVERAGE(AA4:AA34) -> 24.182 | AB35: 20.861
X36: bez záruky without guarantee bez gwarancje
